bitfinex/quotes_ETHUSD_20220111
["timestamp","ask_amount","ask_price","bid_price","bid_amount"]
[1641920808779,0.03953449,3237.2,3237.0,2.07205]
[1641920808985,0.123783,3237.3,3237.0,2.07205]
[1641920809784,6.6e-05,3237.4,3237.1,0.5768]
[1641920809984,6.6e-05,3237.4,3237.2,4.8658589]
[1641920810182,0.972036,3238.2,3237.3,7.56983]
[1641920810382,0.972036,3238.2,3237.6,0.0281202]
[1641920810584,0.972036,3238.2,3237.6,6.10223609]
[1641920810789,0.05136251,3237.9,3237.6,1.5709202]
[1641920810985,0.922036,3238.2,3237.8,0.01174476]
[1641920811185,0.12373,3238.1,3237.8,0.01174476]
[1641920811384,0.12373,3238.1,3237.8,5.46356468]
[1641920811625,0.12373,3238.1,3237.8,1.0]
[1641920812026,0.922036,3238.2,3237.7,6.52947304]
[1641920812227,3.6e-05,3238.2,3237.8,4.91061078]
[1641920812526,3.6e-05,3238.2,3237.8,1.5648]
[1641920812726,0.123731,3238.7,3237.9,6.36586]
[1641920812927,0.123731,3238.7,3238.3,0.77167]
[1641920813126,0.123731,3238.7,3238.3,1.07167]
[1641920813333,3.1e-05,3239.0,3238.4,6.35]
[1641920813528,3.1e-05,3239.0,3238.5,0.01664465]
[1641920813729,3.1e-05,3239.0,3238.3,0.3]
[1641920813928,3.1e-05,3239.0,3238.6,1.54318]
[1641920814128,3.1e-05,3239.0,3238.6,1.84318]
[1641920814327,3.1e-05,3239.0,3238.6,1.79318]
[1641920814928,3.1e-05,3239.0,3238.3,3.1]
[1641920815129,3.1e-05,3239.0,3238.3,2.56550943]
[1641920815391,3.1e-05,3239.0,3237.9,3.85806]
[1641920815392,0.01236758,3238.5,3237.9,6e-05]
[1641920815594,0.46036758,3238.5,3237.9,6e-05]
[1641920816188,0.01295729,3238.0,3237.9,6e-05]
[1641920816388,0.01295729,3238.0,3236.7,0.12]
[1641920816588,0.448,3238.1,3236.7,0.1176]
[1641920816889,0.91657812,3237.0,3236.7,0.1176]
[1641920817089,0.448,3238.1,3236.4,1.68251997]
[1641920817292,0.50641404,3237.2,3236.8,1.54412]
[1641920817492,0.50641404,3237.2,3236.7,2.62937667]
[1641920817891,0.448,3237.7,3236.9,0.02300103]
[1641920818091,0.9909732,3237.9,3236.9,0.02300103]
[1641920818291,0.9909732,3237.9,3237.0,0.05136251]
[1641920818497,0.9909732,3237.9,3237.0,0.06053801]
[1641920818694,0.9909732,3237.9,3237.1,0.06053801]
[1641920818893,0.9909732,3237.9,3237.3,0.77204]
[1641920819128,1.48568456,3237.9,3237.3,0.77204]
[1641920819325,0.448,3238.5,3237.3,0.77204]
[1641920819326,0.448,3238.5,3237.4,0.03975393]
[1641920819723,0.448,3238.5,3237.4,0.06053801]
[1641920820331,0.448,3238.5,3237.4,0.77203]
[1641920820332,0.01291953,3238.0,3237.4,0.77203]
[1641920820527,0.01291953,3238.0,3237.1,3.14403]
[1641920820742,3.1e-05,3239.0,3237.1,3.14403]
[1641920820743,3.1e-05,3239.0,3237.4,0.36053801]
[1641920820935,0.08595501,3239.1,3237.5,6.35]
[1641920821134,0.073734,3239.1,3237.6,1.05136251]
[1641920821528,0.448,3239.0,3237.4,0.06053801]
[1641920821728,1.14559502,3237.3,3237.0,3.9518]
[1641920821927,0.45153162,3238.5,3236.9,0.02300103]
[1641920822131,0.448,3238.5,3237.0,0.0222662]
[1641920822427,0.02666978,3238.4,3236.9,0.02300103]
[1641920822629,0.56564224,3237.6,3236.9,0.02300103]
[1641920822880,0.448,3238.5,3237.2,0.77207]
[1641920822881,0.92450369,3237.9,3237.2,0.77207]
[1641920823084,0.448,3238.9,3237.2,1.07207]
[1641920823283,3.9841929,3239.1,3237.3,0.0095349]
[1641920823284,0.448,3238.8,3237.3,0.0095349]
[1641920823480,0.448,3238.8,3237.1,1.54401]
[1641920823880,0.01279868,3238.4,3237.1,1.54401]
[1641920824081,0.96527018,3237.6,3236.9,1.54413]
[1641920824383,1.10334211,3237.4,3237.1,2.2485605]
[1641920824583,0.00539943,3237.3,3237.1,2.2485605]
[1641920824981,1.10334211,3237.4,3237.1,2.2485605]
[1641920824982,0.61190857,3237.2,3237.1,2.2485605]
[1641920826181,0.61190857,3237.2,3237.1,2.2421685]
[1641920827029,0.123773,3237.3,3237.1,2.5421685]
[1641920827429,0.123773,3237.3,3237.2,1.0]
[1641920827430,7.3e-05,3237.3,3237.2,1.0]
[1641920827730,7.3e-05,3237.3,3237.1,2.5421685]
[1641920827731,0.448,3238.4,3237.1,2.26517836]
[1641920827931,0.448,3238.4,3237.1,3.03730836]
[1641920828233,0.448,3238.4,3237.1,2.26517836]
[1641920828234,0.92636918,3237.5,3237.1,2.26517836]
[1641920828429,0.92636918,3237.5,3237.1,2.56517836]
[1641920828633,0.92636918,3237.5,3237.1,2.26517836]
[1641920831377,0.00580522,3237.4,3237.1,2.26517836]
[1641920831580,0.92636918,3237.5,3237.2,2.62951732]
[1641920832378,0.92636918,3237.5,3237.3,0.02515328]
[1641920832577,0.92636918,3237.5,3237.1,2.26517836]
[1641920832877,0.92636918,3237.5,3237.3,0.02299453]
[1641920834328,1.40769813,3237.5,3237.3,0.02299453]
[1641920834929,0.89946791,3237.9,3237.3,0.02299453]
[1641920835128,0.58313367,3237.5,3237.4,0.02161823]
[1641920835329,0.80653661,3237.5,3237.3,0.02299453]
[1641920836330,0.123784,3237.6,3237.3,0.02299453]
[1641920836931,0.123784,3237.6,3237.3,0.79512453]
[1641920837132,0.123784,3237.6,3237.3,0.02299453]
[1641920837776,0.123784,3237.6,3237.4,2.62930624]
[1641920840976,0.01814121,3237.5,3237.3,0.02299453]
[1641920841179,1.12950519,3237.4,3237.3,0.02299453]
[1641920841632,0.9481931,3237.4,3237.3,0.02299453]
[1641920842228,0.9481931,3237.4,3237.1,2.16516303]
[1641920842628,0.59834559,3237.3,3237.1,2.16516303]
[1641920842830,0.9481931,3237.4,3237.1,2.16516303]
[1641920843029,0.9481931,3237.4,3237.3,2.62953758]
[1641920843236,7.2981931,3237.4,3237.3,2.62953758]
[1641920843630,0.9481931,3237.4,3237.3,2.62953758]
[1641920843940,0.9481931,3237.4,3237.1,2.16516303]
[1641920843941,0.9481931,3237.4,3237.2,2.62953758]
[1641920844448,6.35,3237.2,3237.1,2.16516303]
[1641920844731,0.01201331,3237.3,3237.1,2.16516303]
[1641920845385,0.9481931,3237.4,3237.1,2.16516303]
[1641920846387,0.9481931,3237.4,3237.2,0.02059929]
[1641920846685,0.00800325,3237.3,3237.1,2.16516303]
[1641920846885,0.9481931,3237.4,3237.1,2.16516303]
[1641920847090,0.00356622,3237.3,3237.1,2.16516303]
[1641920847387,0.9481931,3237.4,3237.1,2.16516303]
[1641920847587,0.02076774,3237.3,3237.1,2.16516303]
[1641920847785,0.98648259,3237.4,3237.2,0.05136251]
[1641920847985,0.98648259,3237.4,3237.1,2.16516303]
[1641920848184,0.00385297,3237.3,3237.1,2.16516303]
[1641920848686,0.98648259,3237.4,3237.1,2.16516303]
[1641920848887,0.98648259,3237.4,3237.2,0.01551816]
[1641920849131,0.98648259,3237.4,3237.1,2.16516303]
[1641920849738,0.03828949,3237.4,3237.1,2.93739303]
[1641920849929,0.03828949,3237.4,3237.2,0.05136251]
[1641920850130,0.03828949,3237.4,3237.2,1.0]
[1641920851435,0.03828949,3237.4,3237.2,2.54416]
[1641920852884,0.0661789,3237.6,3237.2,2.54416]
[1641920853086,0.0661789,3237.6,3237.3,0.04605188]
[1641920853285,0.0661789,3237.6,3237.4,0.77207]
[1641920854484,1.04750357,3237.5,3237.4,0.77207]
[1641920854687,1.04750357,3237.5,3237.2,1.54416]
[1641920855282,0.04886753,3237.4,3237.1,3.6239364]
[1641920855485,1.04750357,3237.5,3237.1,2.16516303]
[1641920856283,0.05117898,3237.4,3237.1,2.16516303]
[1641920856551,1.04750357,3237.5,3237.1,2.16516303]
[1641920856739,0.01364285,3237.4,3237.1,2.16516303]
[1641920856936,1.04750357,3237.5,3237.1,2.16516303]
[1641920857137,1.04750357,3237.5,3237.2,0.77221]
[1641920857337,0.0661789,3237.6,3237.2,0.77221]
[1641920857942,0.0661789,3237.6,3237.3,0.03856803]
[1641920858139,0.0661789,3237.6,3237.4,0.77205]
[1641920858344,0.0661789,3237.6,3237.4,1.07205]
[1641920858540,0.0661789,3237.6,3237.4,0.77205]
[1641920859043,0.0661789,3237.6,3237.4,1.07205]
[1641920859843,0.0661789,3237.6,3237.4,0.77205]
[1641920861089,0.0661789,3237.6,3237.2,2.56209405]
[1641920861287,0.01046547,3237.5,3237.2,2.86209405]
[1641920861487,0.0661789,3237.6,3237.4,3.17216]
[1641920861688,0.0661789,3237.6,3237.4,0.77216]
[1641920861888,0.0661789,3237.6,3237.5,1.0]
[1641920862088,0.0661789,3237.6,3237.4,2.37216]
[1641920862288,0.0661789,3237.6,3237.4,1.77216]
[1641920862487,0.0661789,3237.6,3237.4,0.77216]
[1641920863087,0.0661789,3237.6,3237.4,0.79004572]
[1641920863890,3.5161789,3237.6,3237.4,0.74004572]
[1641920864937,3.5161789,3237.6,3237.4,1.04004572]
[1641920865139,3.5161789,3237.6,3237.5,2.62903524]
[1641920865738,3.5161789,3237.6,3237.5,2.52903524]
[1641920866539,3.5161789,3237.6,3237.5,3.52903524]
[1641920866740,0.01201851,3238.6,3237.5,3.52903524]
[1641920866941,0.80637761,3238.9,3237.5,8.57946474]
[1641920867141,0.80637761,3238.9,3238.1,0.77189]
[1641920867342,4.03905814,3239.1,3238.2,0.01787062]
[1641920867542,0.32255814,3239.1,3238.2,0.01787062]
[1641920867784,1.06215682,3238.7,3238.0,1.54377]
[1641920868090,1.06215682,3238.7,3238.1,0.03898385]
[1641920868284,1.06215682,3238.7,3238.4,0.7719]
[1641920868594,1.06215682,3238.7,3238.5,0.03248203]
[1641920868785,1.06215682,3238.7,3238.4,0.7719]
[1641920868983,1.06215682,3238.7,3238.0,1.54377]
[1641920868984,0.86386714,3238.1,3238.0,1.54377]
[1641920870084,4.05895814,3239.1,3238.1,0.05136251]
[1641920870284,0.32255814,3239.1,3238.0,1.54377]
[1641920871086,0.05117898,3238.4,3238.0,1.54377]
[1641920871565,0.93945834,3238.5,3238.0,1.54377]
[1641920871754,0.04794999,3238.4,3238.0,1.54377]
[1641920872155,0.93945834,3238.5,3238.0,1.54377]
[1641920872352,1.43585725,3238.5,3238.0,1.54377]
[1641920872753,0.93619834,3238.5,3238.1,0.02417433]
[1641920872953,0.93619834,3238.5,3238.3,0.77196]
[1641920873153,0.806237,3239.0,3238.3,0.77196]
[1641920873360,0.547827,3239.0,3238.3,0.77196]
[1641920873753,0.01141212,3238.9,3238.3,0.77196]
[1641920873955,0.547827,3239.0,3238.3,0.77196]
[1641920874155,0.547827,3239.0,3238.4,0.04041792]
[1641920874358,1.05426575,3238.7,3238.6,0.77188]
[1641920874756,0.44626575,3238.7,3238.6,0.77188]
[1641920875161,8.304738,3239.2,3238.6,0.77188]
[1641920875377,8.304738,3239.2,3238.7,0.03615936]
[1641920875378,7.083738,3239.2,3238.7,0.03615936]
[1641920875775,7.083738,3239.2,3238.6,3.51006373]
[1641920876177,1.09391977,3238.9,3238.6,3.51006373]
[1641920876377,1.09391977,3238.9,3238.6,3.1]
[1641920876577,0.78444977,3238.9,3238.6,3.1]
[1641920876875,0.04784903,3238.8,3238.6,3.1]
[1641920877077,0.5228288,3238.9,3238.6,3.1]
[1641920877279,0.5228288,3238.9,3238.7,0.08665842]
[1641920877479,0.5228288,3238.9,3238.6,3.1]
[1641920877881,0.5228288,3238.9,3238.6,3.87188]
[1641920878079,0.56605389,3238.9,3238.6,3.87188]
[1641920878484,0.25658389,3238.9,3238.7,0.09823212]
[1641920878680,0.00332995,3238.8,3238.6,3.1]
[1641920878879,0.25658389,3238.9,3238.6,3.1]
[1641920879440,0.25658389,3238.9,3238.6,3.87186]
[1641920879639,0.08427389,3238.9,3238.7,0.09921154]
[1641920879837,0.114518,3239.2,3238.7,0.09921154]
[1641920880038,0.93698776,3239.2,3238.7,0.09921154]
[1641920880244,0.93698776,3239.2,3238.6,3.1]
[1641920880439,0.93698776,3239.2,3238.6,3.87188]
[1641920880837,0.114518,3239.2,3238.6,3.87188]
[1641920881044,0.114518,3239.2,3238.8,0.04972086]
[1641920881240,0.114518,3239.2,3238.6,3.1]
[1641920881638,0.114518,3239.2,3238.7,0.77185]
[1641920881838,0.114518,3239.2,3238.8,0.09589218]
[1641920882043,0.114518,3239.2,3238.6,4.64357]
[1641920882239,0.72966133,3239.3,3238.6,4.64357]
[1641920882888,0.72966133,3239.3,3238.7,0.01634399]
[1641920883490,0.00332995,3239.2,3238.9,0.7718]
[1641920883715,0.72966133,3239.3,3239.0,0.0574505]
[1641920883890,0.72966133,3239.3,3238.9,0.7718]
[1641920884291,0.67966133,3239.3,3239.0,0.09105771]
[1641920884491,0.67966133,3239.3,3238.7,0.01634399]
[1641920885591,1.03100271,3238.8,3238.7,0.01634399]
[1641920885891,1.03100271,3238.8,3238.6,3.1]
[1641920887942,1.03100271,3238.8,3238.7,0.01430099]
[1641920888543,1.03100271,3238.8,3238.6,3.1]
[1641920888850,6.35,3238.7,3237.9,1.54391]
[1641920889045,6.35,3238.7,3237.6,5.16045]
[1641920889046,1.08148348,3238.1,3237.6,6.61922337]
[1641920889246,6.35,3238.7,3237.6,3.00282337]
[1641920889446,0.01217492,3239.0,3237.6,3.00282337]
[1641920889749,10.2456,3239.2,3237.7,4.6714684]
[1641920889946,10.2456,3239.2,3238.3,1.54366]
[1641920890147,0.80619088,3239.4,3238.4,0.07512068]
[1641920890383,1.14160945,3239.1,3238.3,1.54366]
[1641920890783,0.80619088,3239.4,3238.3,1.54366]
[1641920890990,0.80619088,3239.4,3238.4,0.0774173]
[1641920891183,0.80619088,3239.4,3238.3,1.54366]
[1641920891392,0.80619088,3239.4,3238.6,0.05538418]
[1641920891584,0.80619088,3239.4,3238.8,0.77182]
[1641920891785,0.84509313,3239.1,3238.9,0.06735794]
[1641920891985,0.84509313,3239.1,3238.8,0.77182]
[1641920892386,0.84509313,3239.1,3238.6,1.0]
[1641920893086,0.84509313,3239.1,3238.5,0.3]
[1641920893286,0.84509313,3239.1,3238.4,0.31671016]
[1641920893487,0.84509313,3239.1,3238.8,0.09921154]
[1641920894137,0.80619088,3239.4,3238.7,2.62886942]
[1641920894340,0.80619088,3239.4,3238.8,0.04846749]
[1641920894533,0.80619088,3239.4,3238.8,0.82029749]
[1641920894733,6.233726,3239.6,3238.8,1.82029749]
[1641920894935,6.233726,3239.6,3238.9,2.62886942]
[1641920895334,0.123726,3239.6,3238.9,2.92886942]
[1641920895536,0.123726,3239.6,3239.1,1.54336]
[1641920895735,0.123726,3239.6,3239.2,0.05457707]
[1641920896137,0.123726,3239.6,3239.2,0.82625707]
[1641920896336,0.123726,3239.6,3239.2,0.77168]
[1641920896337,0.073726,3239.6,3239.2,0.77168]
[1641920896542,0.073726,3239.6,3239.3,0.07189212]
[1641920896738,0.023726,3239.6,3239.2,0.77168]
[1641920897142,0.023726,3239.6,3239.3,0.09921154]
[1641920897347,0.86517001,3239.5,3238.9,3.1]
[1641920897539,1.00286082,3239.0,3238.9,3.1]
[1641920898193,0.023726,3239.6,3238.9,3.1]
[1641920898388,0.023726,3239.6,3239.0,0.84148358]
[1641920898589,6.34069036,3240.0,3238.9,3.1]
[1641920898989,6.34069036,3240.0,3238.9,5.72876532]
[1641920899198,1.14301479,3239.8,3239.0,1.0]
[1641920899593,1.14301479,3239.8,3239.1,0.05381283]
[1641920899897,1.14301479,3239.8,3239.0,3.40054532]
[1641920900090,1.14301479,3239.8,3239.0,3.45344532]
[1641920900292,1.14301479,3239.8,3239.0,3.15344532]
[1641920900892,1.14301479,3239.8,3239.0,0.52468]
[1641920901091,1.14301479,3239.8,3239.0,1.82468]
[1641920901737,1.14301479,3239.8,3239.0,0.52468]
[1641920901936,0.00332995,3239.7,3239.0,0.52468]
[1641920902134,0.00332995,3239.2,3238.9,3.1]
[1641920902342,1.00393463,3239.3,3238.9,3.1]
[1641920903134,1.00393463,3239.3,3239.1,0.02501997]
[1641920903335,0.01221018,3239.9,3239.1,0.02501997]
[1641920903535,0.01221018,3239.9,3239.2,0.06096378]
[1641920904137,0.01221018,3239.9,3239.1,0.02501997]
[1641920904935,0.95236764,3239.6,3239.1,0.02501997]
[1641920905385,0.90236764,3239.6,3239.1,0.02501997]
[1641920906186,0.90236764,3239.6,3239.2,0.09921154]
[1641920906386,0.90236764,3239.6,3239.1,0.02501997]
[1641920907785,0.90236764,3239.6,3238.9,3.1]
[1641920907786,0.90236764,3239.6,3239.4,0.02501055]
[1641920908187,0.00332995,3239.5,3238.9,3.1]
[1641920908486,0.90236764,3239.6,3238.9,3.1]
[1641920909138,0.90236764,3239.6,3239.1,0.09479613]
[1641920909336,0.07585338,3239.4,3239.0,2.62867224]
[1641920909838,0.87822102,3239.6,3239.1,0.00441541]
[1641920910039,0.87822102,3239.6,3238.9,3.1]
[1641920910439,0.87822102,3239.6,3239.0,0.77178]
[1641920910739,0.87822102,3239.6,3238.9,3.1]
[1641920911339,0.87822102,3239.6,3239.1,2.62860485]
[1641920911540,0.87822102,3239.6,3239.2,0.77174]
[1641920911739,0.87822102,3239.6,3239.3,0.05841511]
[1641920911940,7.14673656,3240.0,3239.3,0.05841511]
[1641920912542,7.14673656,3240.0,3239.1,1.0]
[1641920912790,0.04467315,3239.6,3239.3,0.7717]
[1641920912991,0.04467315,3239.6,3239.2,1.54329]
[1641920913791,0.82799052,3239.4,3239.3,2.62857131]
[1641920913996,0.82799052,3239.4,3239.0,0.77178]
[1641920914392,0.82799052,3239.4,3238.9,3.398]
[1641920914994,0.82799052,3239.4,3239.0,0.77178]
[1641920915194,0.82799052,3239.4,3239.1,0.06958197]
[1641920915593,0.82799052,3239.4,3239.0,0.77178]
[1641920915998,0.0222727,3239.3,3239.0,0.77178]
[1641920916193,0.82799052,3239.4,3239.0,0.77178]
[1641920916398,0.82799052,3239.4,3238.9,3.398]
[1641920916643,0.82799052,3239.4,3239.0,0.77178]
[1641920916844,0.82799052,3239.4,3239.1,0.07497041]
[1641920917144,0.82799052,3239.4,3239.0,0.77178]
[1641920917545,0.04467315,3239.6,3239.1,0.04796506]
[1641920917747,0.04467315,3239.6,3239.3,0.77168]
[1641920917944,4.52135027,3239.9,3239.3,0.77168]
[1641920918145,0.6703022,3239.9,3239.3,0.77168]
[1641920918345,0.6703022,3239.9,3239.4,0.06920972]
[1641920918544,0.6703022,3239.9,3239.1,1.54335]
[1641920918749,0.99529436,3239.5,3239.1,1.54335]
[1641920919148,7.64673656,3240.0,3239.2,0.04924238]
[1641920919546,1.53673656,3240.0,3239.1,0.6]
[1641920919749,1.53673656,3240.0,3239.2,0.448]
[1641920919953,0.73069036,3240.0,3239.3,0.03357691]
[1641920920150,0.73069036,3240.0,3239.2,1.048]
[1641920920394,0.00453388,3239.9,3239.2,1.048]
[1641920920598,1.79271951,3240.0,3239.5,0.77166]
[1641920920796,1.74271951,3240.0,3239.6,0.02974739]
[1641920921202,0.0222727,3239.9,3239.4,1.54322]
[1641920921599,1.74271951,3240.0,3239.5,0.08026879]
[1641920921999,1.74271951,3240.0,3239.4,1.54322]
[1641920922610,0.91308191,3239.5,3239.4,1.54322]
[1641920922803,0.91308191,3239.5,3238.6,2.31495]
[1641920923400,0.91308191,3239.5,3239.0,0.06455191]
[1641920924045,0.91308191,3239.5,3238.9,3.72177]
[1641920924441,0.91308191,3239.5,3238.9,4.02177]
[1641920924641,0.91308191,3239.5,3239.0,1.0]
[1641920925248,0.91308191,3239.5,3238.9,2.95]
[1641920925443,3.85,3239.4,3238.9,3.72176]
[1641920925642,0.91308191,3239.5,3238.9,2.95]
[1641920925845,0.91308191,3239.5,3239.0,0.04867229]
[1641920926242,0.91308191,3239.5,3238.9,2.95]
[1641920926443,1.0521648,3239.0,3238.9,2.95]
[1641920926642,1.0521648,3239.0,3238.7,0.448]
[1641920926845,7.7,3239.8,3238.7,0.448]
[1641920927145,7.55,3239.8,3238.8,0.06707858]
[1641920927543,7.55,3239.8,3238.7,1.048]
[1641920927801,0.0446649,3239.5,3239.1,0.77173]
[1641920928594,0.0446649,3239.5,3239.2,0.07797776]
[1641920928795,0.01693378,3239.4,3239.1,0.77173]
[1641920928996,0.0446649,3239.5,3239.2,0.07930051]
[1641920929195,0.00904255,3239.4,3239.1,0.77173]
[1641920929395,0.0446649,3239.5,3239.2,0.84665289]
[1641920929594,0.0446649,3239.5,3239.2,0.77169]
[1641920929794,0.0446649,3239.5,3238.7,0.448]
[1641920929996,0.89408743,3239.1,3238.7,0.448]
[1641920930502,0.89408743,3239.1,3238.4,1.45877337]
[1641920930503,5.75,3239.0,3238.4,1.45877337]
[1641920930695,0.89408743,3239.1,3238.4,1.45877337]
[1641920930696,1.02676944,3238.6,3238.4,1.45877337]
[1641920931546,1.02676944,3238.6,3238.3,1.54365]
[1641920931838,0.8060839,3239.1,3238.3,1.54365]
[1641920932040,0.8060839,3239.1,3238.4,0.04790735]
[1641920932441,0.8060839,3239.1,3238.3,1.54365]
[1641920932641,0.8060839,3239.1,3238.4,0.08026879]
[1641920932842,0.04457414,3238.5,3238.3,0.448]
[1641920933047,0.04457414,3238.5,3238.3,0.748]
[1641920933246,0.04457414,3238.5,3238.3,1.55093668]
[1641920933441,7.414e-05,3238.5,3238.3,1.81972]
[1641920933643,7.414e-05,3238.5,3238.3,3.27849337]
[1641920934042,7.414e-05,3238.5,3238.4,1.0]
[1641920934845,7.414e-05,3238.5,3238.4,5.08744266]
[1641920935800,7.414e-05,3238.5,3238.4,4.08744266]
[1641920935995,5.39814487,3239.6,3238.6,0.77186]
[1641920936196,0.54903831,3239.9,3238.7,0.08026879]
[1641920936593,0.54903831,3239.9,3238.6,0.6]
[1641920936594,0.53619961,3239.9,3238.6,0.6]
[1641920936798,0.53619961,3239.9,3238.5,2.84357]
[1641920936994,0.93825863,3239.6,3238.5,2.84357]
[1641920937195,0.01777423,3239.5,3239.1,0.77172]
[1641920937395,0.93825863,3239.6,3239.1,0.77172]
[1641920937597,0.93825863,3239.6,3239.2,0.03337106]
[1641920937895,0.93825863,3239.6,3238.8,1.55867799]
[1641920938300,0.93825863,3239.6,3239.1,0.77174]
[1641920938498,1.89299036,3240.0,3239.1,0.77174]
[1641920938697,1.89299036,3240.0,3239.3,2.62866929]
[1641920939045,1.89299036,3240.0,3239.4,0.08026879]
[1641920939241,0.68069036,3240.0,3239.3,2.62866929]
[1641920939438,1.04205089,3239.7,3239.6,0.77161]
[1641920939642,1.04205089,3239.7,3239.3,2.62866929]
[1641920940140,1.04205089,3239.7,3239.4,0.03602727]
[1641920940342,0.68069036,3240.0,3239.4,1.03602727]
[1641920940544,0.68069036,3240.0,3239.7,0.77158]
[1641920940744,0.68069036,3240.0,3239.8,0.06717475]
[1641920940949,0.68069036,3240.0,3239.5,0.448]
[1641920941145,0.01308987,3239.9,3239.8,1.54297]
[1641920941342,0.68069036,3240.0,3239.8,1.54297]
[1641920942441,0.68069036,3240.0,3239.8,1.99097]
[1641920942896,0.68069036,3240.0,3239.9,0.02665499]
[1641920943097,0.68069036,3240.0,3239.9,2.6548171]
[1641920945102,0.68069036,3240.0,3239.9,2.38178173]
[1641920945302,0.68069036,3240.0,3239.9,3.15325173]
[1641920945702,0.68069036,3240.0,3239.9,3.60125173]
[1641920945901,0.68069036,3240.0,3239.9,9.08852189]
[1641920946108,0.68069036,3240.0,3239.9,4.90125173]
[1641920946302,0.68069036,3240.0,3239.9,8.00125173]
[1641920946553,0.68069036,3240.0,3239.9,7.70125173]
[1641920946746,0.68069036,3240.0,3239.9,6.70125173]
[1641920947651,0.68069036,3240.0,3239.9,7.70125173]
[1641920947949,0.72523898,3240.0,3239.9,7.70125173]
[1641920948148,0.72523898,3240.0,3239.9,6.70125173]
[1641920949650,0.72523898,3240.0,3239.9,7.70125173]
[1641920949852,0.72523898,3240.0,3239.9,8.00125173]
[1641920950891,0.64004898,3240.0,3239.9,8.00125173]
[1641920951296,0.64004898,3240.0,3239.9,12.1598037]
[1641920951595,2.54770654,3240.3,3239.9,18.19200367]
[1641920951793,0.03047776,3240.6,3240.2,6.35]
[1641920951994,2.09829044,3241.7,3240.4,6.35]
[1641920952199,2.09829044,3241.7,3240.6,0.01213668]
[1641920952393,3e-05,3241.1,3240.8,6.35]
[1641920952593,2.09829044,3241.7,3240.9,8.14242555]
[1641920952795,2.09829044,3241.7,3241.3,0.77102]
[1641920952996,2.09829044,3241.7,3241.4,0.748]
[1641920953195,2.09829044,3241.7,3241.4,0.698]
[1641920953397,2.09829044,3241.7,3241.4,0.448]
[1641920953596,0.123627,3241.8,3241.6,4.05]
[1641920953801,0.123627,3241.8,3241.7,0.448]
[1641920954054,0.123627,3241.8,3241.7,1.448]
[1641920954251,2.6253556,3242.8,3241.7,1.448]
[1641920954450,2.6253556,3242.8,3241.8,0.07919211]
[1641920954650,2.6253556,3242.8,3241.9,2.76042]
[1641920954863,2.6253556,3242.8,3242.0,0.448]
[1641920955050,2.6253556,3242.8,3242.1,4.24911251]
[1641920955252,2.7489516,3242.8,3242.2,1.21881]
[1641920955459,0.0736,3243.0,3242.3,10.59560303]
[1641920955650,0.0736,3243.0,3242.5,0.04794656]
[1641920955852,0.0736,3243.0,3242.6,0.448]
[1641920956052,14.042036,3244.1,3242.7,4.16884372]
[1641920956358,14.042036,3244.1,3242.8,1.28869587]
[1641920956551,14.042036,3244.1,3242.8,2.81863]
[1641920956750,14.042036,3244.1,3242.9,0.02947248]
[1641920956953,14.042036,3244.1,3243.0,0.448]
[1641920957153,14.042036,3244.1,3243.1,0.448]
[1641920957353,14.042036,3244.1,3243.2,0.448]
[1641920957551,7.932036,3244.1,3243.4,0.77054]
[1641920957791,0.86958495,3243.9,3243.5,0.49408836]
[1641920957996,7.932036,3244.1,3243.5,0.448]
[1641920958194,7.932036,3244.1,3243.6,0.03515125]
[1641920958498,7.932036,3244.1,3243.8,0.04367342]
[1641920958499,0.972036,3244.1,3243.8,0.04367342]
[1641920958694,0.972036,3244.1,3243.9,0.448]
[1641920958900,0.972036,3244.1,3243.4,0.448]
[1641920959094,0.93320613,3243.7,3243.4,0.448]
[1641920959293,0.93320613,3243.7,3243.4,0.4406]
[1641920959893,0.93320613,3243.7,3243.5,0.0333984]
[1641920960094,0.972036,3244.1,3243.5,0.07876922]
[1641920960293,0.09460955,3243.9,3243.4,0.29906922]
[1641920960495,0.02501718,3243.9,3243.4,0.29906922]
[1641920960894,0.02501718,3243.9,3243.6,0.77058]
[1641920961295,0.02501718,3243.9,3243.7,0.448]
[1641920962342,0.10272194,3243.9,3243.7,0.448]
[1641920962540,0.10272194,3243.9,3243.7,0.398]
[1641920962541,5.95838616,3243.8,3243.7,0.398]
[1641920962740,5.95838616,3243.8,3242.5,4.23360846]
[1641920962741,0.50838616,3243.8,3242.5,4.23360846]
[1641920962942,0.50838616,3243.8,3243.7,0.01244065]
[1641920963141,0.02501718,3243.9,3243.7,0.01244065]
[1641920963343,0.02501718,3243.9,3243.4,0.448]
[1641920963744,0.99906677,3243.8,3243.4,0.448]
[1641920964046,0.08998639,3243.7,3243.4,0.398]
[1641920964243,0.57565516,3243.6,3243.4,0.398]
[1641920965392,0.02494728,3243.7,3243.4,0.398]
[1641920965597,0.02494728,3243.7,3243.4,1.16864]
[1641920966394,0.02494728,3243.7,3243.4,1.46864]
[1641920966599,0.02494728,3243.7,3243.4,2.46864]
[1641920966994,0.08026771,3243.6,3243.4,2.46864]
[1641920967195,0.02494728,3243.7,3243.4,2.46864]
[1641920967496,0.02494728,3243.7,3243.4,5.56864]
[1641920967896,0.02494728,3243.7,3243.6,0.01399061]
[1641920968696,0.02494728,3243.7,3243.4,3.1]
[1641920968896,0.07257298,3243.6,3243.4,3.1]
[1641920969151,0.79787726,3243.8,3243.4,3.1]
[1641920969846,0.50953869,3243.5,3243.4,3.1]
[1641920970444,0.53441607,3243.5,3243.4,3.1]
[1641920970645,0.02487738,3243.5,3243.4,3.1]
[1641920971849,0.02487738,3243.5,3243.4,4.1]
[1641920972051,0.2505,3244.0,3243.5,5.85]
[1641920972249,0.2505,3244.0,3243.6,1.448]
[1641920972452,0.2505,3244.0,3243.6,5.74234046]
[1641920972649,0.2505,3244.0,3243.6,1.448]
[1641920972894,0.2505,3244.0,3243.7,0.77057]
[1641920973695,0.2505,3244.0,3243.7,1.0]
[1641920973894,0.07790724,3243.9,3243.7,1.0]
[1641920974100,1.14299993,3243.8,3243.6,0.448]
[1641920974300,0.95923516,3244.1,3243.6,0.448]
[1641920974894,0.86923516,3244.1,3243.6,0.448]
[1641920975297,0.86923516,3244.1,3243.8,0.0968816]
[1641920975496,0.10104193,3244.0,3243.8,0.8674816]
[1641920975695,0.86923516,3244.1,3243.8,0.8674816]
[1641920976851,0.0512509,3244.0,3243.8,0.8674816]